[Event "44th Chess Olympiad Open 2022"]
[Site "Chennai"]
[Date "2022.08.06"]
[Round "8.61"]
[White "Pinales Roussel, Gabriel"]
[Black "Oluka Robert Mcligeyo"]
[Result "1-0"]
[ECO "A14"]
[WhiteElo "1973"]
[BlackElo "1823"]
[Annotator "TA"]
[PlyCount "59"]
[EventDate "2022.07.29"]
[EventType "team-tourn"]
[EventCountry "IND"]
[SourceTitle "playchess.com"]
[Source "ChessBase"]
[SourceQuality "1"]
[WhiteTeam "Puerto Rico"]
[BlackTeam "Kenya"]
[WhiteTeamCountry "PUR"]
[BlackTeamCountry "KEN"]
[TimeControl "40/5400+30:1800+30"]

{[%evp 19,58,14,22,0,1,0,0,0,0,0,10,12,22,8,131,64,68,47,249,226,647,663,1072,1067,29967,943,900,897,1133,748,2695,1183,2483,2503,29994,29995,29995,29996,29996,29997,29999]} 1. Nf3 {[%emt 0:00:03]} d5 {[%emt 0:00:40]} 2. g3 {[%emt 0:00:07]} e6 {[%emt 0:00:52]} 3. Bg2 {[%emt 0:00:10]} Nf6 {[%emt 0:00:57]} 4. O-O {[%emt 0:00:10]} Be7 {[%emt 0:00:05]} 5. c4 {[%emt 0:01:55]} O-O {[%emt 0:01:10]} 6. b3 {[%emt 0:03:03]} b6 {[%emt 0:01:35]} 7. Bb2 {[%emt 0:00:26]} Bb7 {[%emt 0:00:45]} 8. e3 {[%emt 0:00:57]} Nbd7 {[%emt 0:02:02]} 9. Qe2 {[%emt 0:03:29]} c5 {[%emt 0:01:29]} 10. Nc3 {[%emt 0:01:40]} Rc8 {[%emt 0:01:53]} 11. Rac1 {[%emt 0:03:12] A14: English Opening: 1...e6 with b3 by White.} Qc7 {[%emt 0:02:45]} 12. Ne1 {[%emt 0:02:28]} dxc4 {[%emt 0:03:05]} 13. bxc4 {[%emt 0:00:17] The position is equal.} Bxg2 {[%emt 0:00:07]} 14. Nxg2 {[%emt 0:00:09]} Rfd8 {[%emt 0:05:31]} 15. f4 {[%emt 0:00:50]} Qb7 {[%emt 0:05:12]} 16. e4 {[%emt 0:08:02] [#]} e5 $146 {[%emt 0:00:06]} (16... Nb8 $11 {keeps the balance.}) ({Predecessor:} 16... Ne8 17. e5 g6 18. g4 Qb8 19. Ne4 Bf8 20. f5 exf5 21. gxf5 Bg7 22. f6 Bf8 23. e6 {1-0 (23) Harika,D (2507)-Sukhareva,E (2201) Khanty-Mansiysk 2014}) 17. Nd5 {[%emt 0:02:44]} (17. Ne3 $16) 17... Nxd5 $14 {[%emt 0:05:45]} 18. exd5 {[%emt 0:03:09]} (18. cxd5 $5 {[%cal Rf4e5]} Bf6 19. Ne3 $16) 18... Bd6 {[%emt 0:03:00] This costs Black the game.} (18... Bf6 $14) 19. Ne3 $18 {[%emt 0:04:14] Nf5 is the strong threat.} ({Less strong is} 19. fxe5 Bxe5 20. Bxe5 Re8 $14) 19... exf4 $2 {[%emt 0:14:04]} (19... Re8 20. Nf5 Bf8 21. fxe5 Nxe5 22. Bxe5 g6) 20. Nf5 {[%emt 0:00:25]} f3 {[%emt 0:00:41]} 21. Rxf3 {[%emt 0:07:09] Intending Nh6+ and mate.} Bf8 {[%emt 0:02:55] [#]} 22. Ne7+ {[%emt 0:11:15]} (22. Nh6+ $142 $1 {[%mdl 512]} gxh6 23. Rxf7 $3 {[%mdl 512]} Rc6 24. dxc6 Qxc6 25. Rf4 h5 26. Qxh5 Nf6 27. Bxf6) 22... Bxe7 {[%emt 0:00:17]} 23. Qxe7 {[%emt 0:00:06]} Rf8 {[%emt 0:00:46]} 24. Rcf1 {[%emt 0:01:35][%cal Rf3f7]} Rce8 {[%emt 0:01:19] [#]} 25. Qxe8 $3 {[%emt 0:04:51][%mdl 512]} Rxe8 {[%emt 0:02:14]} (25... f6 26. Qe6+) 26. Rxf7 {[%emt 0:00:11]} Qb8 {[%emt 0:18:21]} 27. Rxg7+ {[%emt 0:01:38] White mates.} Kh8 {[%emt 0:00:05]} 28. Rxd7+ {[%emt 0:00:17][%mdl 64] Discovered Attack} Re5 {[%emt 0:00:06]} 29. Bxe5+ {[%emt 0:00:12]} Qxe5 {[%emt 0:00:05]} 30. Rf8# {[%emt 0:00:03] Weighted Error Value: White=0.26 (precise) /Black=1.27} 1-0

[Event "44th Chess Olympiad Open 2022"]
[Site "Chennai"]
[Date "2022.08.06"]
[Round "8.63"]
[White "Villanueva, Marcio"]
[Black "Arnold Smith"]
[Result "1-0"]
[ECO "D11"]
[WhiteElo "2009"]
[BlackElo "1931"]
[Annotator "TA"]
[PlyCount "133"]
[EventDate "2022.07.29"]
[EventType "team-tourn"]
[EventCountry "IND"]
[SourceTitle "playchess.com"]
[Source "ChessBase"]
[SourceQuality "1"]
[WhiteTeam "Honduras"]
[BlackTeam "Liberia"]
[WhiteTeamCountry "HON"]
[BlackTeamCountry "LBR"]
[TimeControl "40/5400+30:1800+30"]

{[%evp 11,133,0,0,0,0,0,0,0,0,0,25,15,0,0,0,-20,-14,-32,-37,-38,-33,-36,0,-22,-18,-50,-45,-44,-40,-39,-14,-11,0,0,0,-8,0,0,0,0,0,0,0,0,28,26,68,77,56,40,68,77,72,71,74,68,76,70,175,170,162,154,160,168,154,139,198,172,153,144,147,145,220,120,127,113,305,68,68,68,68,68,190,190,211,191,172,0,0,0,0,0,0,0,0,0,0,0,0,0,0,0,0,0,0,0,0,-863,0,0,0,0,0,0,7,8,143,143,1130,1027,1025,880,702,630]} 1. Nf3 {[%emt 0:00:03]} d5 {[%emt 0:00:20]} 2. d4 {[%emt 0:00:07]} Nf6 {[%emt 0:00:24]} 3. g3 {[%emt 0:00:11]} Bf5 {[%emt 0:00:59]} 4. Bg2 {[%emt 0:02:05]} e6 {[%emt 0:01:59]} 5. c4 {[%emt 0:00:27]} c6 {[%emt 0:01:03]} 6. Nc3 {[%emt 0:00:52]} h6 {[%emt 0:01:04]} 7. Qb3 {[%emt 0:02:10] D11: Slav Defence: 3 Nf3 sidelines and 3...Nf6 4 e3 Bg4.} Qb6 {[%emt 0:01:50]} 8. c5 {[%emt 0:00:08]} Qxb3 {[%emt 0:00:25]} 9. axb3 {[%emt 0:00:02] The position is equal.} Be7 {[%emt 0:00:54]} 10. b4 {[%emt 0:00:57] 10.h3 is the hot move.} Nbd7 {[%emt 0:00:55]} 11. Bf4 {[%emt 0:02:08]} O-O {[%emt 0:00:23]} 12. O-O {[%emt 0:00:27]} a6 {[%emt 0:01:38]} 13. Ra3 {[%emt 0:00:13]} Ne4 {[%emt 0:00:36] [#]} 14. Nd2 $146 {[%emt 0:07:01]} ({Predecessor:} 14. Rfa1 Rae8 15. Ne1 Ng5 16. R3a2 Nh3+ 17. Bxh3 Bxh3 18. b5 cxb5 19. c6 bxc6 20. Rxa6 {1-0 (49) Schwarz,E (1994)-Reinecke,K (1842) Floersheim 2016}) 14... Nxd2 {[%emt 0:05:55]} 15. Bxd2 {[%emt 0:00:05]} Bf6 {[%emt 0:00:24]} 16. e3 {[%emt 0:02:34]} e5 {[%emt 0:00:15]} 17. Ne2 {[%emt 0:03:45]} Rfe8 {[%emt 0:02:14]} 18. Bc3 {[%emt 0:01:50]} Bd3 {[%emt 0:00:54]} 19. Re1 {[%emt 0:01:52][%cal Bf1e1,Be1e2,Be2d2,Bd2d4][%mdl 32]} Bxe2 {[%emt 0:00:22]} 20. dxe5 {[%emt 0:00:30] [#]} Bxe5 {[%emt 0:02:04]} 21. Rxe2 {[%emt 0:00:47]} Nf6 {[%emt 0:00:32][%cal Bd7f6,Bf6g4,Bg4e5,Be5c4][%mdl 32]} 22. Rd2 {[%emt 0:04:40]} Rad8 {[%emt 0:00:26]} 23. Kf1 {[%emt 0:03:06]} Ng4 {[%emt 0:06:40]} 24. h3 {[%emt 0:06:59]} Bxc3 {[%emt 0:02:58]} 25. bxc3 {[%emt 0:00:32]} Ne5 {[%emt 0:01:57]} 26. Ra1 {[%emt 0:00:20]} f5 {[%emt 0:03:11]} 27. Rd4 {[%emt 0:02:41]} Nc4 {[%emt 0:01:01]} 28. Bf3 {[%emt 0:02:11]} Rf8 {[%emt 0:04:32]} 29. Be2 {[%emt 0:00:25]} Ne5 {[%emt 0:01:00]} 30. Rad1 {[%emt 0:00:10] c4 is the strong threat.} Ra8 {[%emt 0:08:13]} 31. f4 {[%emt 0:04:16]} Nd7 {[%emt 0:00:27]} 32. c4 {[%emt 0:01:34]} Nf6 {[%emt 0:00:15]} 33. cxd5 {[%emt 0:00:34]} cxd5 {[%emt 0:00:18]} 34. Bf3 {[%emt 0:00:27]} Rae8 {[%emt 0:01:51]} (34... a5 $1 $14) 35. Kf2 {[%emt 0:03:16]} Ne4+ {[%emt 0:06:23]} 36. Bxe4 {[%emt 0:04:33]} dxe4 $18 {[%emt 0:03:51][%mdl 4096] Endgame KRR-KRR} 37. Rd7 {[%emt 0:04:23]} Rf7 {[%emt 0:01:39]} 38. Ke2 {[%emt 0:04:11] White is more active.} Re6 {[%emt 0:05:21]} (38... a5 $16 {was necessary.}) 39. Rxf7 {[%emt 0:08:24]} Kxf7 {[%emt 0:00:14] KR-KR} 40. Rd5 {[%emt 0:00:09]} g6 {[%emt 0:00:30]} 41. Kd2 {[%emt 0:30:28]} Ke7 {[%emt 0:33:26]} (41... h5 $16 {might work better.} 42. Kc3 Ke7) 42. Kc3 {[%emt 0:00:16]} (42. g4 $18) 42... h5 $16 {[%emt 0:12:09]} 43. Kc4 {[%emt 0:05:22]} b6 $2 {[%emt 0:08:10]} (43... Rc6 $16 {was called for.}) 44. h4 $2 {[%emt 0:06:01]} (44. Re5 $1 $18 {And now cxb6 would win.} Rxe5 45. fxe5 bxc5 46. bxc5) 44... Rc6 $14 {[%emt 0:02:35]} 45. Rd1 {[%emt 0:07:51]} bxc5 {[%emt 0:02:14]} 46. bxc5 {[%emt 0:00:05]} Rc8 {[%emt 0:00:31]} (46... Ke8 $1 $14) 47. Rd6 $18 {[%emt 0:00:46]} Ra8 {[%emt 0:01:04]} 48. Rxg6 {[%emt 0:00:10] Strongly threatening c6.} a5 {[%emt 0:00:30][%cal Ba6a5,Ba5a4,Ba4a3,Ba3a2][%mdl 32]} 49. Kd5 $2 {[%emt 0:04:18]} (49. Rg5 a4 50. Rg7+ (50. Rxf5 $2 a3 $19) 50... Ke6 51. Rg6+ Ke7 52. Rg7+ Ke6 53. Rg6+ Ke7 54. Rg7+ $11) (49. Kb3 $1 $18) 49... a4 $11 {[%emt 0:00:34]} 50. Rg7+ {[%emt 0:00:08]} Kf6 {[%emt 0:00:20]} 51. Rb7 {[%emt 0:00:18]} a3 {[%emt 0:00:10] White must now prevent ...a2.} 52. Rb1 {[%emt 0:00:03]} a2 {[%emt 0:00:54]} 53. Ra1 {[%emt 0:00:04]} Ra3 {[%emt 0:00:14]} 54. Kd6 {[%emt 0:01:07]} Rd3+ {[%emt 0:00:53]} 55. Kc7 {[%emt 0:00:12]} Rc3 {[%emt 0:00:23]} (55... Rxe3 56. Rxa2 Rxg3 57. c6 $18) 56. c6 {[%emt 0:00:07]} Rc2 {[%emt 0:01:16]} 57. Kd7 {[%emt 0:00:44]} Rd2+ {[%emt 0:02:04]} 58. Kc8 {[%emt 0:02:02]} Ke7 {[%emt 0:00:13]} 59. c7 $2 {[%emt 0:00:57][%mdl 8192] [#]} (59. Kc7 $11) 59... Rc2 $2 {[%emt 0:00:19]} ({Black should try} 59... Rb2 $1 $19 {Threatens to win with ...Ke8.} 60. g4 fxg4) 60. Kb7 {[%emt 0:00:16]} Rb2+ {[%emt 0:00:43]} 61. Kc6 {[%emt 0:00:07]} Rc2+ {[%emt 0:00:38]} 62. Kd5 {[%emt 0:00:39][%cal Oa1a2]} ({But not} 62. Kb7 Rb2+ 63. Kc6 Rc2+ 64. Kd5 (64. Kb7 Rb2+ $14) 64... Rxc7 $14) 62... Rxc7 {[%emt 0:01:24]} ({Don't play} 62... Kd7 63. c8=R Kxc8 64. Ke6 $14) 63. Rxa2 {[%emt 0:00:06] White wants to play Ra5.} Rb7 {[%emt 0:00:49] [#]} (63... Rc3 $11 {remains equal.}) 64. Ra5 $1 $16 {[%emt 0:00:23][%cal Og3g4]} Kf7 $2 {[%emt 0:00:28][%mdl 8192]} (64... Rb3 $16) 65. Ke5 $18 {[%emt 0:00:06] White is clearly winning.} ({Weaker is} 65. Kc6 Rb3 66. Rxf5+ Kg6 67. Rg5+ Kh6 $18) 65... Kg6 {[%emt 0:00:33]} 66. Ra6+ {[%emt 0:00:07]} Kg7 {[%emt 0:00:07]} 67. Kxf5 {[%emt 0:00:04] What a fight!  Weighted Error Value: White=0.29 (precise) /Black=0.23 (precise)} 1-0

[Event "44th Chess Olympiad Open 2022"]
[Site "Chennai"]
[Date "2022.08.06"]
[Round "8.63"]
[White "Garcia Cuestas, Kevin"]
[Black "Barcon, Harmon"]
[Result "0-1"]
[ECO "C41"]
[WhiteElo "1984"]
[BlackElo "1902"]
[Annotator "TA"]
[PlyCount "78"]
[EventDate "2022.07.29"]
[EventType "team-tourn"]
[EventCountry "IND"]
[SourceTitle "playchess.com"]
[Source "ChessBase"]
[SourceQuality "1"]
[WhiteTeam "Honduras"]
[BlackTeam "Liberia"]
[WhiteTeamCountry "HON"]
[BlackTeamCountry "LBR"]
[TimeControl "40/5400+30:1800+30"]

{[%evp 10,78,35,10,22,20,30,5,7,0,8,6,18,-6,0,0,0,0,0,-37,-22,-24,-16,-74,-50,-135,-144,-138,-148,-145,-120,-295,-268,-516,-531,-872,-838,-1233,-679,-660,-635,-611,-446,-438,-441,-438,-427,-1144,-745,-741,-741,-733,-716,-1133,-1118,-1192,-1187,-1104,-1102,-1004,-1049,-933,-831,-2592,-1972,-4906,-2100,-4910,-4878,-29974,-29975]} 1. e4 {[%emt 0:00:11]} e5 {[%emt 0:00:12]} 2. Nf3 {[%emt 0:00:08]} d6 {[%emt 0:00:02]} 3. d4 {[%emt 0:00:09]} exd4 {[%emt 0:00:11]} 4. Nxd4 {[%emt 0:00:09]} Nf6 {[%emt 0:00:15]} 5. Nc3 {[%emt 0:00:34]} Be7 {[%emt 0:00:08]} 6. Bd3 {[%emt 0:02:56]} a6 {[%emt 0:00:05] C41: Philidor Defence.} 7. Bf4 {[%emt 0:06:39] [#]} b5 $146 {[%emt 0:02:31]} ({Predecessor:} 7... h6 8. O-O g5 9. Be3 O-O 10. Nd5 c5 11. Nxf6+ Bxf6 12. Nf5 Bxf5 13. exf5 Nc6 14. Qh5 {0-1 (25) Bellisario,C (1343)-Jakobi,W (1582) ICCF email 2019}) 8. a3 {[%emt 0:01:22]} c5 {[%emt 0:02:46] The position is equal.} 9. Nf5 {[%emt 0:03:05]} Bxf5 {[%emt 0:00:30]} 10. exf5 {[%emt 0:00:16] With the idea g4.} d5 {[%emt 0:00:19]} 11. O-O {[%emt 0:07:28]} O-O {[%emt 0:01:11]} 12. Qf3 {[%emt 0:04:15]} Nc6 {[%emt 0:00:17]} 13. Rfd1 {[%emt 0:09:16]} Ra7 {[%emt 0:06:24]} 14. Rd2 {[%emt 0:11:52]} Nd4 {[%emt 0:06:05] Pair of Knights!} 15. Qh3 {[%emt 0:00:16]} Rd7 {[%emt 0:02:06]} 16. Re1 {[%emt 0:05:31]} (16. Rad1 $11 {remains equal.}) 16... Re8 {[%emt 0:01:39]} (16... Bd6 $5 {[%cal Rd6f4]} 17. Bg5 h6 $17) 17. Nd1 {[%emt 0:07:00]} (17. Bf1 $15) 17... Bd6 $17 {[%emt 0:03:01]} 18. Rxe8+ {[%emt 0:04:47]} Qxe8 {[%emt 0:00:24]} 19. Be3 {[%emt 0:03:27]} Nc6 $36 {[%emt 0:05:44][%cal Bd4c6,Bc6e5,Be5f3][%mdl 2080] Black is really pushing. Black is much more active. The white rooks are badly placed.} 20. g3 $2 {[%emt 0:11:08] [#] Loses the game.} (20. Bf1 $17 {was worth a try.}) 20... Ne5 $19 {[%emt 0:11:21]} 21. Kg2 {[%emt 0:09:10] Against Nf3} (21. Qg2) 21... d4 {[%emt 0:08:15]} 22. Bg5 {[%emt 0:01:33]} Qa8+ {[%emt 0:00:22]} 23. Kf1 {[%emt 0:02:56]} Nf3 {[%emt 0:03:09]} 24. Bxf6 {[%emt 0:01:28][%cal Od2e2]} Nxd2+ {[%emt 0:00:03]} 25. Ke2 {[%emt 0:00:23]} Qf3+ {[%emt 0:00:41]} 26. Kxd2 {[%emt 0:02:32][%cal Oh3h4]} Bf4+ {[%emt 0:00:23]} ({Not} 26... gxf6 $2 27. Be2 Bf4+ 28. Ke1 $19) 27. Ke1 {[%emt 0:00:11][%cal Of6d4]} gxf6 {[%emt 0:00:26]} 28. Qf1 {[%emt 0:04:49]} (28. Be2 $142 Re7 29. Ne3 Qh1+ 30. Qf1) 28... Re7+ {[%emt 0:01:27]} 29. Be2 {[%emt 0:00:09]} Bc1 {[%emt 0:01:11]} 30. Ne3 {[%emt 0:01:05]} Qe4 {[%emt 0:04:03]} 31. Bd3 {[%emt 0:00:21]} Qe5 {[%emt 0:00:34]} 32. Kd1 {[%emt 0:00:15]} dxe3 {[%emt 0:00:21]} 33. Kxc1 {[%emt 0:00:46][%mdl 4096] Endgame KQR-KQB} c4 {[%emt 0:00:14]} 34. f4 {[%emt 0:00:42]} Qd5 {[%emt 0:03:38]} 35. Be2 {[%emt 0:00:07]} c3 {[%emt 0:02:43] [#] ( -> ...Qa2)} 36. Kb1 {[%emt 0:00:43] Prevents Qa2+.} cxb2 {[%emt 0:00:26] Hoping for ...Qd2.} 37. Kxb2 {[%emt 0:00:07]} Qd4+ {[%emt 0:00:41]} (37... Qd2 $142 38. Kb1 Rd7) 38. Ka2 {[%emt 0:00:34]} Qd2 {[%emt 0:00:43]} 39. Kb2 {[%emt 0:00:28]} b4 {[%emt 0:00:16] Weighted Error Value: White=1.52/Black=0.54} 0-1

[Event "44th Chess Olympiad Open 2022"]
[Site "Chennai"]
[Date "2022.08.06"]
[Round "8.64"]
[White "Espirito Santo, Waldyr"]
[Black "Vella, Duncan"]
[Result "1-0"]
[ECO "B22"]
[WhiteElo "1922"]
[BlackElo "1985"]
[Annotator "TA"]
[PlyCount "107"]
[EventDate "2022.07.29"]
[EventType "team-tourn"]
[EventCountry "IND"]
[SourceTitle "playchess.com"]
[Source "ChessBase"]
[SourceQuality "1"]
[WhiteTeam "STP"]
[BlackTeam "Malta"]
[BlackTeamCountry "MLT"]
[TimeControl "40/5400+30:1800+30"]

{[%evp 24,107,-10,-33,-28,-51,18,-52,-54,-63,-55,-58,-43,-43,-40,-64,-15,-18,-26,-54,-36,-72,-72,-183,-70,-66,-66,-78,-62,-77,-81,-145,-151,-170,-166,-157,-141,-221,-210,-199,-199,-194,-198,-240,-171,-210,-161,-214,-197,-272,-260,-302,-297,-312,-321,-303,-260,-397,0,-264,-185,-293,-219,-232,-236,-226,-199,-245,0,-246,-256,-227,0,-279,-251,-262,0,0,0,0,254,257,832,832,831,830]} 1. e4 {[%emt 0:00:03][%cal Be2e4,Be4e5][%mdl 32]} c5 {[%emt 0:00:12]} 2. c3 {[%emt 0:00:19]} Nf6 {[%emt 0:00:32]} 3. e5 {[%emt 0:00:09]} Nd5 {[%emt 0:00:05]} 4. Nf3 {[%emt 0:00:38]} Nc6 {[%emt 0:00:39]} 5. Bc4 {[%emt 0:00:57]} Nb6 {[%emt 0:02:43]} 6. Bb3 {[%emt 0:00:26]} d5 {[%emt 0:08:22]} 7. exd6 {[%emt 0:02:32]} Qxd6 {[%emt 0:01:08]} 8. d4 {[%emt 0:02:04]} cxd4 {[%emt 0:02:57]} 9. cxd4 {[%emt 0:06:54]} Be6 {[%emt 0:09:44]} 10. O-O {[%emt 0:02:54]} Bxb3 {[%emt 0:02:03]} 11. Qxb3 {[%emt 0:01:44]} e6 {[%emt 0:11:07]} 12. Nc3 {[%emt 0:06:56]} Be7 {[%emt 0:03:22]} 13. Nb5 {[%emt 0:01:53] 13.Rd1 injects fresh life into this line.} Qd8 {[%emt 0:00:16] B22: Sicilian: 2 c3.} 14. Bf4 {[%emt 0:02:48]} Nd5 {[%emt 0:00:53] [#] Prevents Nc7+.} (14... Rc8 $15) 15. Bg3 {[%emt 0:02:31]} (15. Nc7+ $1 $11 Nxc7 16. Qxb7 Nxd4 17. Nxd4 (17. Bxc7 Qc8 $11) (17. Qxc7 Qxc7 18. Bxc7 Nxf3+ 19. gxf3 Bf6 $15) 17... Qxd4 18. Bxc7 (18. Qxc7 O-O $14)) 15... O-O $15 {[%emt 0:01:46] Black is slightly better.} 16. Nc3 {[%emt 0:02:32] [#]} Nxc3 $146 {[%emt 0:11:05]} ({Predecessor:} 16... Na5 17. Qb5 a6 18. Qe2 Nxc3 19. bxc3 Rc8 20. Rfc1 Qd5 21. Rab1 b5 22. Ne5 Bg5 23. f4 Bf6 24. Nd3 Rxc3 {0-1 (24) Estrada,W (1713)-Blandon,L (2280) Medellin 2015}) 17. bxc3 {[%emt 0:00:17]} b6 {[%emt 0:00:52]} 18. Qa4 {[%emt 0:03:54]} Rc8 {[%emt 0:03:55]} 19. Rac1 {[%emt 0:01:21]} Bd6 {[%emt 0:01:47]} (19... Na5 $15) 20. Bxd6 {[%emt 0:01:18]} Qxd6 {[%emt 0:00:03]} 21. Rfe1 {[%emt 0:01:26]} Rc7 {[%emt 0:03:11]} 22. Qb5 {[%emt 0:02:32]} Rfc8 {[%emt 0:02:35][%cal Oc6b4]} 23. Qg5 {[%emt 0:03:58] [#]} (23. Qb2 $17) 23... Na5 {[%emt 0:03:45]} (23... h6 $1 $19 {[%cal Rh6g5]} 24. Qd2 Ne7) 24. Nd2 {[%emt 0:06:47]} h6 {[%emt 0:08:50]} (24... Rxc3 $2 25. Rxc3 Rxc3 26. Ne4 Qxd4 27. Nxc3 $18) 25. Qe3 {[%emt 0:01:43]} Qa3 {[%emt 0:01:54][%cal Rc7c3]} 26. Ne4 {[%emt 0:02:26]} Qxa2 {[%emt 0:03:50]} 27. g4 {[%emt 0:02:39]} ({Better is} 27. Qg3) 27... Qd5 $17 {[%emt 0:02:09]} 28. g5 {[%emt 0:00:21]} Nc4 $36 {[%emt 0:02:29][%mdl 2048] Black has strong initiative.} 29. Qg3 {[%emt 0:00:55]} hxg5 {[%emt 0:01:14]} 30. Nxg5 {[%emt 0:00:34]} (30. h4 $17) 30... Qf5 $19 {[%emt 0:03:28]} 31. h4 {[%emt 0:03:34]} Rd7 {[%emt 0:01:25]} 32. Re4 {[%emt 0:01:12]} Nd6 {[%emt 0:01:42]} 33. Rg4 {[%emt 0:01:18]} Ne8 {[%emt 0:01:14]} 34. Nf3 {[%emt 0:00:43]} f6 {[%emt 0:01:03]} 35. Kg2 {[%emt 0:01:35]} (35. Rf4 $142 Qh5 36. Re1) 35... Qh5 {[%emt 0:01:08]} 36. Re1 {[%emt 0:01:47]} (36. Rf4 $142) 36... Re7 {[%emt 0:01:06]} (36... Rxc3 $2 37. Rxe6 Qf7 38. d5 $19) 37. Re3 {[%emt 0:01:38]} a5 {[%emt 0:00:36][%cal Ba7a5,Ba5a4][%mdl 32]} 38. Ne1 {[%emt 0:01:29]} a4 {[%emt 0:01:15]} 39. Nc2 {[%emt 0:00:15]} Qd5+ {[%emt 0:01:00]} 40. Kh2 {[%emt 0:00:33]} (40. Qf3 $142 Qxf3+ 41. Kxf3) 40... Qh5 $2 {[%emt 0:01:34]} (40... Qb3 $19 41. Nb4 a3) 41. f3 $2 {[%emt 0:31:05][%mdl 8192]} (41. Kg2 $1 $11) 41... Rd8 {[%emt 0:11:19]} 42. Rg6 {[%emt 0:00:00]} (42. Nb4 {was called for.}) 42... Kf7 {[%emt 0:02:09]} 43. Rg4 {[%emt 0:00:00]} Qh6 {[%emt 0:04:17]} 44. Re2 {[%emt 0:00:00]} Nd6 {[%emt 0:01:32] White must now prevent ...Nf5.} 45. Ne3 {[%emt 0:00:00]} (45. d5 {is a better defense.} e5 46. Rxa4) 45... Ne8 $2 {[%emt 0:02:14]} ({Black should play} 45... a3 $19 {...Ra7 is the strong threat.} 46. Ra2 Nf5 47. Nxf5 exf5) 46. f4 $2 {[%emt 0:00:00]} (46. Nc2 $1 $11 {and White is okay.}) 46... Nd6 {[%emt 0:03:02] Hoping for ...f5.} 47. Rg2 {[%emt 0:00:00][%cal Rg4g7]} Rg8 {[%emt 0:01:20]} (47... Kf8 $19 {Strongly threatening ...Ne4.} 48. Qe1 a3) 48. Qf3 {[%emt 0:00:00][%mdl 8192] Against Ne4} (48. Rg6 Qh7 49. Kg1 a3 $17) (48. d5 $1 $11 {and White has nothing to worry.}) 48... f5 {[%emt 0:00:57]} 49. R4g3 {[%emt 0:00:00]} Qxh4+ {[%emt 0:01:18]} (49... Ne4 $19 50. Nc4 Nxg3 51. Ne5+ Kf6 52. Kxg3 a3) 50. Rh3 $11 {[%emt 0:00:00]} Qf6 {[%emt 0:00:39] And now ...Rc7 would win.} 51. Qc6 {[%emt 0:01:48][%csl LRa4,LRb6,LRd6] Inhibits Rc7.} Ne4 {[%emt 0:01:15][%mdl 8192]} (51... Rd8 $1 $11 {and Black stays safe.}) 52. Nc4 $18 {[%emt 0:05:38][%cal Be3c4,Bc4e5,Be5d7][%mdl 32] aiming for Ne5+. Dancing on a razor blade.} Ree8 $2 {[%emt 0:02:12]} (52... e5 53. Qd5+ (53. Nxe5+ Rxe5 54. Qxf6+ gxf6 $11) 53... Qe6 54. Nxe5+ Kf8 55. Ng6+ Kf7 56. Ne5+ (56. Nxe7 Kxe7 57. Qb7+ Kf6 $18) 56... Kf8 57. Ng6+ Kf7 58. Ne5+ (58. Nxe7 Kxe7 59. Qb7+ Kf6 $18)) 53. Ne5+ {[%emt 0:00:38]} Kf8 {[%emt 0:00:58]} 54. Nd7+ {[%emt 0:00:13] Weighted Error Value: White=0.56/Black=0.55} 1-0